Cogmind - Beta 11.1 @@@ ROGUE MODE // 2022.04.25 @ 03:08:39 Player: Okkudo Result: Smashed by cave-in Performance ------------- Evolutions (0) 0 Regions Visited (4) 800 Robots Destroyed (24) 120 Value Destroyed (786) 786 Prototype IDs (1) 20 Alien Tech Used (0) 0 Bonus (0) 0 TOTAL SCORE: 1726 Bonus ------- None Cogmind --------- Core Integrity 0/250 Matter 299/300 Energy 66/100 System Corruption 8% Temperature Cool (0) Movement Treading (170) Location -9/Mines Parts ------- > --- POWER (1) -------- (None) > --- PROPULSION (2) --- Armored Treads > --- UTILITY (2) ------ Small Storage Unit Makeshift Sensor Array > --- WEAPON (2) ------- Autogun > --- INVENTORY (8) ---- Ion Engine Improved Treads Actuator Array Improved Trap Extractor (0/6) Welding Torch Hammer Peak State ------------ > --- POWER ------------ Light Nuclear Core > --- PROPULSION ------- Armored Treads Advanced Treads > --- UTILITY ---------- Visual Processing Unit Experimental Sensor Array > --- WEAPON ----------- Medium Laser Makeshift Axe > --- INVENTORY -------- Ion Engine Actuator Array Improved Trap Extractor Grenade Launcher Mining Laser [Rating: 26] Favorites ----------- Power Light Nuclear Core Engine Light Ion Engine Power Core Light Nuclear Core Propulsion Armored Treads Treads Armored Treads Utility Visual Processing Unit Device Makeshift Sensor Array Storage Small Storage Unit Processor Visual Processing Unit Weapon Medium Laser Energy Gun Medium Laser Ballistic Gun Autogun Launcher Grenade Launcher Slashing Weapon Makeshift Axe Piercing Weapon Makeshift Spear Build | -11 -10 -10 -10 -9 ------- Run | Scr Mat Min Exi Min Slots Evolved . | . . . . . Power . | . . . . . Propulsion . | . . . . . Utility . | . . . . . Weapon . | . . . . . Parts Attached 22 | 3 7 6 2 4 Power 3 | . 1 2 . . Engine 2 | . 1 1 . . Core 1 | . . 1 . . Reactor . | . . . . . Propulsion 4 | 1 1 2 . . Treads 4 | 1 1 2 . . Leg . | . . . . . Wheel . | . . . . . Hover . | . . . . . Flight . | . . . . . Utility 7 | . 3 2 1 1 Device 4 | . 1 2 1 . Storage 2 | . 1 . . 1 Processor 1 | . 1 . . . Hackware . | . . . . . Protection . | . . . . . Artifact . | . . . . . Weapon 8 | 2 2 . 1 3 Energy Gun 3 | 2 1 . . . Energy Cannon . | . . . . . Ballistic Gun 1 | . . . . 1 Ballistic Cannon . | . . . . . Launcher 2 | . 1 . . 1 Special Weapon . | . . . . . Impact Weapon . | . . . . . Slashing Weapon 1 | . . . 1 . Piercing Weapon 1 | . . . . 1 Special Melee Weapon . | . . . . . Unidentified Prototypes 1 | . . 1 . . Parts Lost 8 | . 1 . . 7 Power 1 | . . . . 1 Propulsion 1 | . . . . 1 Utility 2 | . 1 . . 1 Weapon 4 | . . . . 4 Highest Loss Streak 3 | . 1 . . 3 To Critical Strikes . | . . . . . Average Slot Usage (%) 94 | . 83 99 99 87 Engine 4 | . 5 11 . . Core 8 | . . 2 14 13 Treads 27 | . 27 28 28 27 Device 13 | . 10 13 13 14 Storage 2 | . 6 . . 5 Processor 10 | . 4 14 14 4 Energy Gun 19 | . 21 28 23 4 Launcher 1 | . 6 . . 2 Slashing Weapon 2 | . . . 4 4 Piercing Weapon 2 | . . . . 9 Naked Turns . | . . . . . Heaviest Build 20 | 3 14 9 15 20 Greatest Support 42 | 20 40 42 42 42 Greatest Overweight (x) . | . . . . . Average Overweight (x) . | . . . . . Largest Inventory Capacity 8 | 5 8 5 5 8 Average Capacity 5 | 5 6 5 5 6 Most Carried 7 | 5 5 5 5 7 Average Carried 4 | 3 4 4 4 4 Final Capacity 8 | 5 5 5 5 8 Final Carried 6 | 5 5 5 5 6 Class Distribution -------------------- 100% | Mutant Dominant Class ---------------- Mutant | -10/Materials Mutant | -10/Mines Mutant | -10/Exiles Mutant | -9/Mines Resources | -11 -10 -10 -10 -9 ----------- Run | Scr Mat Min Exi Min Matter Collected 554 | 230 60 162 20 82 Remotely . | . . . . . Salvage Created 872 | . 207 195 197 273 Parts 46 | . 19 5 6 16 Haulers Intercepted . | . . . . . Recyclers Shooed . | . . . . . Parts Field Recycled . | . . . . . Retrieved Matter . | . . . . . Parts Self-Destructed . | . . . . . Prevented . | . . . . . Kills | -11 -10 -10 -10 -9 ------- Run | Scr Mat Min Exi Min Combat Hostiles Destroyed 23 | . 9 4 4 6 Melee 5 | . . . . 5 Guns 10 | . 2 4 4 . AOE 8 | . 7 . . 1 Classes Destroyed 5 | . 3 . 1 1 Worker 1 | . 1 . . . Swarmer 3 | . 3 . . . Grunt 18 | . 6 4 3 5 Brawler 1 | . . . . 1 Hunter 1 | . . . 1 . Best Kill Streak 6 | . 6 2 1 2 Combat Bots Only 5 | . 5 2 1 2 Max Kills in Single Turn 2 | . 2 1 1 1 Gunslinging . | . . . . . Exploded 1 | . 1 . . 1 Melee 1 | . . . . 1 Uniques/NPCs Destroyed . | . . . . . Combat | -11 -10 -10 -10 -9 -------- Run | Scr Mat Min Exi Min Damage Taken 1322 | . 384 212 . 726 Core 256 | . 121 63 . 72 Absorbed by Shields . | . . . . . Core Remaining (%) 100 | 100 . . . . Volleys Fired 47 | . 18 14 9 6 Largest 2 | . 2 2 2 1 Hottest 90 | . 90 90 90 50 Shots Fired 68 | . 24 28 10 6 Gun 56 | . 14 28 10 4 Cannon . | . . . . . Launcher 12 | . 10 . . 2 Special . | . . . . . Kinetic 3 | . . . . 3 Thermal 53 | . 14 28 10 1 Explosive 12 | . 10 . . 2 Electromagnetic . | . . . . . Robot Hit Streak 10 | . 7 9 10 4 Robot Miss Streak 3 | . 2 3 1 2 Penetration Max . | . . . . . Secondary Targets . | . . . . . Shots Hit Robots 55 | . 15 19 7 14 Core Hits 40 | . 17 11 5 7 Critical Kills . | . . . . . Critical Parts Destroyed . | . . . . . Critical Strikes 3 | . . 1 1 1 Burn 2 | . . 1 1 . Impale 1 | . . . . 1 Melee Attacks 54 | . . . . 54 Impact . | . . . . . Slashing 12 | . . . . 12 Piercing 42 | . . . . 42 Sneak Attacks . | . . . . . Combat Hostiles . | . . . . . Follow-up Attacks . | . . . . . Damage Inflicted 1188 | . 452 235 87 414 Guns 439 | . 72 235 87 45 Cannons . | . . . . . Explosions 464 | . 378 . . 86 Melee 283 | . . . . 283 Ramming 2 | . 2 . . . Kinetic 45 | . . . . 45 Thermal 394 | . 72 235 87 . Explosive 464 | . 378 . . 86 Electromagnetic . | . . . . . Impact . | . . . . . Slashing 39 | . . . . 39 Piercing 244 | . . . . 244 Highest Corruption 7 | . . . . 7 Average Corruption 7 | . . . . 7 Corruption Purged . | . . . . . Corruption Blocked . | . . . . . Effects 18 | . . . . 18 Message Errors 4 | . . . . 4 Matter Fused 4 | . . . . 4 Heat Flow Errors 3 | . . . . 3 Energy Discharges 4 | . . . . 4 Data Loss (minor) 2 | . . . . 2 Alerts 1 | . . . . 1 Overload Shots . | . . . . . Overflow Damage 9 | . . . . 9 Projectiles . | . . . . . Explosions 8 | . . . . 8 Melee 1 | . . . . 1 Knockbacks . | . . . . . Impact . | . . . . . Kinetic . | . . . . . Secondary . | . . . . . Self-Inflicted Damage 19 | . 19 . . . Shots 1 | . 1 . . . Rammed 1 | . 1 . . . Targets Rammed 1 | . 1 . . . Kicked . | . . . . . Crushed . | . . . . . Highest Temperature 357 | . 60 357 42 279 Average Temperature 94 | . 17 155 18 100 Received Heat Transfer 432 | . 162 117 . 153 Siege Activations . | . . . . . Robots Corrupted . | . . . . . Combat Hostiles . | . . . . . Parts Fried . | . . . . . Impact Corruptions . | . . . . . Robots Melted . | . . . . . Combat Hostiles . | . . . . . Parts Melted 2 | . . 2 . . Heat Transferred 1213 | . 198 682 333 . Parts Sabotaged . | . . . . . Parts Stolen . | . . . . . Parts Stripped . | . . . . . Power Chain Reactions . | . . . . . Missiles Intercepted . | . . . . . Alert | -11 -10 -10 -10 -9 ------- Run | Scr Mat Min Exi Min Peak Influence 343 | . 343 179 . 194 Initial 129 | . . 129 . . Average 66 | . 100 61 . 61 Maximum Alert Level 1 | . 1 . . . Low Security (%) 96 | 100 80 100 . 100 Level 1 3 | . 19 . . . Level 2 . | . . . . . Level 3 . | . . . . . Level 4 . | . . . . . Level 5 . | . . . . . High Security . | . . . . . Max Security . | . . . . . Squads Dispatched 4 | . 3 . . 1 Investigation 3 | . 2 . . 1 Extermination . | . . . . . Reinforcement 1 | . 1 . . . Assault . | . . . . . Garrison . | . . . . . Intercept . | . . . . . Searches Triggered . | . . . . . Construction Impeded . | . . . . . Haulers Reinforced . | . . . . . Active Scanning Responses . | . . . . . Cargo Convoy Interrupts . | . . . . . Stealth | -11 -10 -10 -10 -9 --------- Run | Scr Mat Min Exi Min Distress Signals 5 | . 3 . . 2 Communications Jammed . | . . . . . Distress Signals . | . . . . . Times Spotted 40 | . 20 4 . 16 Peak Tracking Total 5 | . 5 2 . 4 Tactical Retreats 2 | . . . . 2 Traps | -11 -10 -10 -10 -9 ------- Run | Scr Mat Min Exi Min Traps Triggered 2 | . 1 1 . . Indirectly . | . . . . . Trap Hack Attempts . | . . . . . Triggered . | . . . . . Disarmed . | . . . . . Reprogrammed . | . . . . . Reused . | . . . . . Traps Extracted . | . . . . . Installed . | . . . . . Triggered . | . . . . . Machines | -11 -10 -10 -10 -9 ---------- Run | Scr Mat Min Exi Min Machines Disabled . | . . . . . Max in Single Turn . | . . . . . Machines Sabotaged . | . . . . . Garrisons Compromised . | . . . . . Overloaded Fab Kills . | . . . . . Hacking | -11 -10 -10 -10 -9 --------- Run | Scr Mat Min Exi Min Machines Accessed 5 | . 1 1 2 1 Terminals 2 | . 1 . . 1 Fabricators . | . . . . . Repair Stations . | . . . . . Recycling Units . | . . . . . Scanalyzers . | . . . . . Garrison Access . | . . . . . Total Hacks 9 | . 3 1 2 3 Successful 6 | . 2 1 2 1 Failed 3 | . 1 . . 2 Catastrophic 2 | . . . . 2 Database Lockouts . | . . . . . Manual 1 | . 1 . . . Terminals 6 | . 3 . . 3 Fabricators . | . . . . . Repair Stations . | . . . . . Recycling Units . | . . . . . Scanalyzers . | . . . . . Garrison Access . | . . . . . Terminal Hacks 6 | . 2 1 2 1 Record 2 | . . . 2 . Open Door 1 | . . 1 . . Branch Access Points 1 | . 1 . . . Terminal Index 1 | . 1 . . . Zone Layout 1 | . . . . 1 Fabricator Hacks . | . . . . . Repair Station Hacks . | . . . . . Recycling Unit Hacks . | . . . . . Scanalyzer . | . . . . . Garrison Access Hacks . | . . . . . Unauthorized Hacks . | . . . . . Terminals . | . . . . . Fabricators . | . . . . . Repair Stations . | . . . . . Recycling Units . | . . . . . Scanalyzers . | . . . . . Garrison Access . | . . . . . Data Cores Recovered . | . . . . . Used . | . . . . . Hacking Detections 2 | . 1 . . 1 Full Trace Events 2 | . 1 . . 1 Feedback Events . | . . . . . Feedback Blocked . | . . . . . Robot Schematics Acquired . | . . . . . Robots Built . | . . . . . Authchips . | . . . . . Time . | . . . . . Total Robot Build Rating . | . . . . . Part Schematics Acquired . | . . . . . Parts Built . | . . . . . Authchips . | . . . . . Time . | . . . . . Total Part Build Rating . | . . . . . Parts Repaired . | . . . . . Time . | . . . . . Parts Recycled . | . . . . . Recycled Matter . | . . . . . Retrieved Matter . | . . . . . Retrieved Components . | . . . . . Parts Scanalyzed . | . . . . . Part Schematics Acquired . | . . . . . Parts Damaged . | . . . . . Bothacking | -11 -10 -10 -10 -9 ------------ Run | Scr Mat Min Exi Min Used RIF Installer . | . . . . . Robots Hacked . | . . . . . Non-combat . | . . . . . Combat . | . . . . . Robot Hacks Applied . | . . . . . Relay Couplers Released . | . . . . . Fabnet Peak Effective % . | . . . . . Robots Rewired . | . . . . . Allies Hacked . | . . . . . Hacks Repelled . | . . . . . Allies | -11 -10 -10 -10 -9 -------- Run | Scr Mat Min Exi Min Total Allies . | . . . . . Largest Group . | . . . . . Highest-Rated Group . | . . . . . Highest-Rated Ally . | . . . . . Total Orders . | . . . . . Ally Attacks . | . . . . . Total Damage . | . . . . . Kills . | . . . . . Allies Corrupted . | . . . . . Allies Melted . | . . . . . Intel | -11 -10 -10 -10 -9 ------- Run | Scr Mat Min Exi Min Robot Analysis Total . | . . . . . Derelict Logs Recovered 3 | . . 2 . 1 Drone Launches . | . . . . . Drone Recoveries . | . . . . . Exploration | -11 -10 -10 -10 -9 ------------- Run | Scr Mat Min Exi Min Turns Passed 3424 | 67 391 1014 1035 917 Spaces Moved 1921 | 41 206 605 641 428 Core 8 | 8 . . . . Treads 1913 | 33 206 605 641 428 Legs . | . . . . . Wheels . | . . . . . Hover . | . . . . . Flight . | . . . . . Fastest Speed 50 | 50 160 152 157 157 Average Speed 156 | 138 160 157 157 157 Slowest Speed 170 | 160 160 160 157 170 Overloaded Moves . | . . . . . Propulsion Burnouts . | . . . . . Robots Hopped . | . . . . . Cave-ins Triggered 2 | . . . . 2 Exploration Rate (%) 65 | 5 43 96 92 91 Regions Visited 4 Branch Regions 3 Pre-discovered Areas 2 | . . 2 . . Known Exits Taken 1 | . 1 . . . Unknown Exits Taken 3 | 1 . 1 1 . Scrap Searched 4 | . . 2 . 2 Spaces Dug 35 | . . . . 35 Terrain Destroyed 84 | . 27 . . 57 Melee 35 | . . . . 35 Projectile . | . . . . . AOE 49 | . 27 . . 22 Terrain Rammed . | . . . . . Walls Destroyed . | . . . . . Machines Disabled . | . . . . . Actions | -11 -10 -10 -10 -9 --------- Run | Scr Mat Min Exi Min Total 2207 | 51 242 641 660 613 Wait 132 | . 4 9 3 116 Move 1917 | 40 205 604 640 428 Hop . | . . . . . Pick Up 22 | 8 5 3 1 5 Fast Attach 4 | . 1 1 2 . Attach 10 | 3 3 . . 4 Detach . | . . . . . Swap 8 | . 3 5 . . Drop 10 | . 2 5 3 . Fire 47 | . 18 14 9 6 Melee 54 | . . . . 54 Ram . | . . . . . Kick . | . . . . . Crush 1 | . 1 . . . Escape Stasis . | . . . . . Rewire 2 | . . . 2 . Trap . | . . . . . Miscellaneous . | . . . . . Route ------- -11/Scrapyard -10/Materials (discovered 2 exits: [*Mat] / *Min) -10/Mines (discovered 3 exits: [*Mat x2] / *Exi) -10/Exiles (discovered 2 exits: *Min x2) -9/Mines History --------- Turn | Location | Event 8 | -11/Scrapyard | Discovered new exit (range 16) 68 | -11/Scrapyard | Entered Materials 292 | -10/Materials | Discovered new exit (range 14) 317 | -10/Materials | Build established: Mutant 418 | -10/Materials | Identified exit to Mines 459 | -10/Materials | Entered Mines 472 | -10/Mines | Met a Derelict who couldn't figure out how to use a Trap Extractor 480 | -10/Mines | Core integrity fell below 50% 598 | -10/Mines | Discovered new exit (range 3) 754 | -10/Mines | Learned location of Mines (-9) 895 | -10/Mines | Discovered new exit (range 9) 907 | -10/Mines | Deemed a non-threat by the Exiles lab entrance 907 | -10/Mines | Discovered new exit (range 5) 997 | -10/Mines | Learned location of Zion (-6) 1063 | -10/Mines | Found a damaged Exp. Sensor Array with a note attached 1068 | -10/Mines | Found Prototype Device 1069 | -10/Mines | Identified Exp. Sensor Array 1473 | -10/Mines | Entered Exiles 1473 | -10/Exiles | Found Exiles lab destroyed 1499 | -10/Exiles | Discovered new exit (range 16) 2061 | -10/Exiles | Discovered new exit (range 10) 2508 | -10/Exiles | Entered Mines 2723 | -9/Mines | Excavation squad dispatched 2723 | -9/Mines | A large section of the Mines collapsed 2800 | -9/Mines | Crushed by falling debris 2831 | -9/Mines | Lost 3 parts (1u2w) 2973 | -9/Mines | Excavation squad dispatched 3223 | -9/Mines | Excavation squad dispatched 3305 | -9/Mines | Core integrity fell below 20% 3426 | -9/Mines | Crushed by falling debris 3426 | -9/Mines | Smashed by cave-in Last Messages --------------- squad. 03345_ System corrupted: Matter fused (-5). 03362_ U-05 Engineer builds a Wall. 03365_ K-01 Serf cleans the Laser Drill. 03366_ Acquired 5 matter. 03368_ K-01 Serf cleans the Laser Drill. 03369_ Acquired Hammer. 03373_ Acquired Autogun. 03375_ Acquired 6 matter. 03376_ K-01 Serf cleans the Laser Drill. 03397_ Adv. Treads destroyed. 03405_ G-34 Mercenary destroyed. 03409_ Lgt. Nuclear Core destroyed. 03410_ G-34 Mercenary destroyed. 03421_ System corrupted: Energy discharge (-30). 03422_ G-34 Mercenary suffers critical hit (Impale). 03426_ The unstable cave ceiling collapses. 03426_ Crushed by falling debris. 03426_ Mak. Spear destroyed. 03426_ System corrupted by crushing effect (+1). Map ----- +----------------------------------------------------+ | | | | | | | | | | | | | | | | | ?????????????????????????????????????????????????? | | ?????????????????????????????????????????????????? | | ?????????###?????######??????????????????????????? | | ?????????#T####### ##?????????????????????????? | | ?????????# # #?????????????????????????? | | ?????????# # ? #?????????????????????????? | | ?????????# ## ##?????????????????????????? | | ?????????# """ ### #??????????????????????????? | | ?????????# """ #?# ##?????????????????????????? | | ?????????# """ ### % ########???#####??????????? | | ?????????# !% %% ##?## ##???????? # | | ?????????# """ * ==""" !* ### ####### | | ?????????# """ ###[ """ %[= * | | ?????????# """ #### """ =?! =%= | | ?????????# # # ## ### ## | | ?????????# #### ?#### #?# #????? | | ?????????########## g###?## #### ### #????? | | ???????????????### #g@#??#=#??## #????? | | ??????????????## ####??#?#???## ######????? | | ??????????????# | ####??# #????####?????????? | | ??????????????# =%* " ##?# #?????????????????? | | ????????????## ! ## #?# #?????????????????? | | ##########?## ## ## #### #?????????????????? | | #?# ######### # # #?????????????????? | | ### ##??????## ## #?????????????????? | | ####### #???????#### #?????????????????? | | ??????# %% #??????????#?#?????????????????? | | ??????####### #??????????# #?????????????????? | | ????????????# ##??????????#%#######???????????? | | ????????????# ###???????????# ? ?* #???????????? | | ????????????# #?????????????###### #???????????? | | ????????#####? #??????????????###?# #???????????? | | ????????# #??????????????# ## #???????????? | | ????????# #??????????????# # ##??????????? | | ???????## #####??????????????# % ##?????????? | | ??????## #??????????????????## % #?????????? | | ?????## ##??????????????????## #?????????? | | ????## ###?????????????????## #?????????? | | ????# ##?????????????????## #?????????? | | ????# #???????? ????????## ##????????? | | ????# #???????# ?????????# "##???????? | | ???## ### ##???????# #???????## # ##??????? | +----------------------------------------------------+ Best States ------------- Heat Dissipation 25 Energy Generation 14 Energy Capacity 250 Matter Stores 300 Matter Capacity 300 Sight Range 18 Robot Scan Range 20 Terrain Scan Density 10 Evasion (%) 50 Recoil Reduction 2 Trap Extractor Capacity 6 Item Schematics ----------------- None Robot Schematics ------------------ None Fabricated ------------ Nothing Alien Tech Used ----------------- None Achievements -------------- None Challenges ------------ None Game ------ Seed GuidedNeutrinoSaw Manual? 0 Play Time 00:34:02 Cumulative 29.6 hours Start 2022.04.25 @ 02:25:50 End 2022.04.25 @ 03:08:39 Sessions 1 Manual Loads 0 Difficulty Rogue Special Mode None Game No. 66 Rogue 66 Adventurer 0 Explorer 0 Win Type - Total 0 Types 0/0/0/0/0/0/0/0/0 Lore% 20 Gallery% 20 Achievement% 20 Wizard Run 0 Options --------- ASCII 0 Keyboard 0 Movement Mouse Keybinds 0 Fullscreen 1 Font 12/Terminus Map View 83x54 Tactical HUD 1 Map Filters NONE Filters NONE Steam 1 RUN: b9dc4991-6096-4c98-8920-52285db8b4f5